[Event "Late-Titled-Tuesday-Blitz-March-12-2024"]
[Site "Chess.com"]
[Date "2024.03.12"]
[Round "6"]
[White "janhelmer03"]
[Black "rdarruda"]
[Result "0-1"]
[WhiteElo "2399"]
[BlackElo "2555"]
[TimeControl "180+1"]
[EndTime "15:06:12 PDT"]
[Termination "rdarruda won on time"]

1. Nf3 {[%clk 0:02:56.3]} 1... d5 {[%clk 0:02:36.6]} 2. e3 {[%clk 0:02:27.4]}
2... Nf6 {[%clk 0:02:33.8]} 3. c4 {[%clk 0:02:28.3]} 3... c6 {[%clk 0:02:33.4]}
4. Nc3 {[%clk 0:02:27.6]} 4... g6 {[%clk 0:02:32.8]} 5. d4 {[%clk 0:02:24.1]}
5... Bg7 {[%clk 0:02:32.6]} 6. cxd5 {[%clk 0:02:24.4]} 6... cxd5 {[%clk
0:02:32.1]} 7. Be2 {[%clk 0:02:25.3]} 7... O-O {[%clk 0:02:31.6]} 8. O-O {[%clk
0:02:26.2]} 8... Nc6 {[%clk 0:02:31.4]} 9. Ne5 {[%clk 0:02:00.3]} 9... e6 {[%clk
0:02:16.6]} 10. Nxc6 {[%clk 0:01:55.4]} 10... bxc6 {[%clk 0:02:17.5]} 11. b3
{[%clk 0:01:54.4]} 11... Nd7 {[%clk 0:02:13.5]} 12. Ba3 {[%clk 0:01:54.2]} 12...
Re8 {[%clk 0:02:09.1]} 13. Rc1 {[%clk 0:01:54.4]} 13... e5 {[%clk 0:02:06.3]}
14. Na4 {[%clk 0:01:47.1]} 14... Bb7 {[%clk 0:02:04.9]} 15. Nc5 {[%clk
0:01:44.8]} 15... Nxc5 {[%clk 0:02:04.2]} 16. Bxc5 {[%clk 0:01:45.2]} 16... a5
{[%clk 0:02:02.4]} 17. Qd2 {[%clk 0:01:37.6]} 17... Ba6 {[%clk 0:02:01]} 18.
Bxa6 {[%clk 0:01:18.7]} 18... Rxa6 {[%clk 0:02:01.9]} 19. Rc2 {[%clk 0:01:13.4]}
19... a4 {[%clk 0:01:59.6]} 20. b4 {[%clk 0:01:10.6]} 20... Qb8 {[%clk
0:01:58.9]} 21. a3 {[%clk 0:01:09]} 21... Qb5 {[%clk 0:01:58]} 22. Rfc1 {[%clk
0:01:08.5]} 22... h6 {[%clk 0:01:52]} 23. dxe5 {[%clk 0:01:07.3]} 23... Bxe5
{[%clk 0:01:51.1]} 24. Bd4 {[%clk 0:01:08]} 24... Bxd4 {[%clk 0:01:46.2]} 25.
Qxd4 {[%clk 0:01:08.9]} 25... Re4 {[%clk 0:01:44.8]} 26. Qf6 {[%clk 0:01:04.8]}
26... Qd3 {[%clk 0:01:34.9]} 27. Rxc6 {[%clk 0:00:56.4]} 27... Rxc6 {[%clk
0:01:31.7]} 28. Qxc6 {[%clk 0:00:57.3]} 28... Qxa3 {[%clk 0:01:30.7]} 29. b5
{[%clk 0:00:49.1]} 29... Rc4 {[%clk 0:01:12.1]} 30. Qa8+ {[%clk 0:00:46.4]}
30... Kg7 {[%clk 0:01:09.4]} 31. Rf1 {[%clk 0:00:43.5]} 31... Rc5 {[%clk
0:00:57.2]} 32. b6 {[%clk 0:00:41.2]} 32... Rb5 {[%clk 0:00:57.3]} 33. b7 {[%clk
0:00:35.1]} 33... Qb3 {[%clk 0:00:57.3]} 34. Qa7 {[%clk 0:00:25.1]} 34... Rxb7
{[%clk 0:00:56]} 35. Qd4+ {[%clk 0:00:26]} 35... Kh7 {[%clk 0:00:56.1]} 36. h4
{[%clk 0:00:25.5]} 36... a3 {[%clk 0:00:54.7]} 37. h5 {[%clk 0:00:25.3]} 37...
a2 {[%clk 0:00:54.3]} 38. hxg6+ {[%clk 0:00:25.6]} 38... fxg6 {[%clk 0:00:53.7]}
39. Ra1 {[%clk 0:00:23.9]} 39... Qb1+ {[%clk 0:00:52.9]} 40. Kh2 {[%clk
0:00:24.1]} 40... h5 {[%clk 0:00:27.4]} 41. Qf6 {[%clk 0:00:15]} 41... Ra7
{[%clk 0:00:24.6]} 42. Qd4 {[%clk 0:00:11.9]} 42... Rf7 {[%clk 0:00:20.4]} 43.
f3 {[%clk 0:00:09.5]} 43... Rd7 {[%clk 0:00:19.9]} 44. Qf6 {[%clk 0:00:08.7]}
44... Ra7 {[%clk 0:00:17]} 45. Qd4 {[%clk 0:00:08.3]} 45... Re7 {[%clk
0:00:11.5]} 46. Qf6 {[%clk 0:00:08.2]} 46... Rg7 {[%clk 0:00:10.8]} 47. Qd4
{[%clk 0:00:07.3]} 47... Rd7 {[%clk 0:00:09]} 48. Qf6 {[%clk 0:00:06.4]} 48...
d4 {[%clk 0:00:07.4]} 49. Qe6 {[%clk 0:00:01.8]} 49... Qxa1 {[%clk 0:00:07.2]}
50. Qxd7+ {[%clk 0:00:02.3]} 50... Kh6 {[%clk 0:00:07.6]} 51. Qd8 {[%clk
0:00:01.2]} 51... dxe3 {[%clk 0:00:05.5]} 0-1

[Event "Late-Titled-Tuesday-Blitz-March-12-2024"]
[Site "Chess.com"]
[Date "2024.03.12"]
[Round "6"]
[White "KorolDimitriy75"]
[Black "DonBroca"]
[Result "0-1"]
[WhiteElo "2418"]
[BlackElo "2251"]
[TimeControl "180+1"]
[EndTime "15:06:15 PDT"]
[Termination "DonBroca won on time"]

1. d4 {[%clk 0:03:00.9]} 1... Nf6 {[%clk 0:02:56.4]} 2. c4 {[%clk 0:03:01]} 2...
e6 {[%clk 0:02:56.4]} 3. Nc3 {[%clk 0:03:01.4]} 3... Bb4 {[%clk 0:02:56.6]} 4.
Qc2 {[%clk 0:03:01.4]} 4... c5 {[%clk 0:02:51.2]} 5. dxc5 {[%clk 0:03:01.3]}
5... Bxc5 {[%clk 0:02:49.4]} 6. Nf3 {[%clk 0:03:01.3]} 6... O-O {[%clk
0:02:45.9]} 7. Bg5 {[%clk 0:03:01.3]} 7... h6 {[%clk 0:02:45.7]} 8. Bh4 {[%clk
0:03:01]} 8... Nc6 {[%clk 0:02:39.1]} 9. e3 {[%clk 0:02:56.6]} 9... b6 {[%clk
0:02:26.9]} 10. Be2 {[%clk 0:02:55.1]} 10... Bb7 {[%clk 0:02:24.5]} 11. O-O
{[%clk 0:02:55]} 11... Be7 {[%clk 0:02:18.7]} 12. Rfd1 {[%clk 0:02:52.7]} 12...
d6 {[%clk 0:02:11.4]} 13. Rac1 {[%clk 0:02:33.2]} 13... Rc8 {[%clk 0:02:11]} 14.
Qa4 {[%clk 0:02:07.4]} 14... a6 {[%clk 0:01:24.2]} 15. h3 {[%clk 0:01:49]} 15...
Nh5 {[%clk 0:01:12.1]} 16. Bxe7 {[%clk 0:01:40.6]} 16... Qxe7 {[%clk 0:01:13]}
17. Qb3 {[%clk 0:01:34.7]} 17... Qc7 {[%clk 0:00:58.5]} 18. Na4 {[%clk
0:01:21.8]} 18... Nf6 {[%clk 0:00:25.7]} 19. Qxb6 {[%clk 0:01:16.2]} 19... Rfd8
{[%clk 0:00:25.3]} 20. Qxc7 {[%clk 0:01:01.6]} 20... Rxc7 {[%clk 0:00:26.2]} 21.
b3 {[%clk 0:01:01.1]} 21... Kf8 {[%clk 0:00:25.2]} 22. Kf1 {[%clk 0:00:51]}
22... Ke7 {[%clk 0:00:24.6]} 23. Nc3 {[%clk 0:00:46.1]} 23... Rcd7 {[%clk
0:00:19.5]} 24. Nd4 {[%clk 0:00:41.9]} 24... Nxd4 {[%clk 0:00:15.5]} 25. Rxd4
{[%clk 0:00:42.8]} 25... d5 {[%clk 0:00:14.5]} 26. cxd5 {[%clk 0:00:41.4]} 26...
Nxd5 {[%clk 0:00:15.4]} 27. Nxd5+ {[%clk 0:00:41.3]} 27... Bxd5 {[%clk 0:00:14]}
28. Bxa6 {[%clk 0:00:26.3]} 28... Ra8 {[%clk 0:00:14]} 29. Bb5 {[%clk
0:00:24.3]} 29... Rd6 {[%clk 0:00:09.6]} 30. Ba4 {[%clk 0:00:18.5]} 30... e5
{[%clk 0:00:08.9]} 31. Rb4 {[%clk 0:00:13.1]} 31... Rad8 {[%clk 0:00:07]} 32.
Rc7+ {[%clk 0:00:10.4]} 32... Kf6 {[%clk 0:00:07.2]} 33. f3 {[%clk 0:00:09.4]}
33... Be6 {[%clk 0:00:05.8]} 34. Rc2 {[%clk 0:00:07.3]} 34... Rd1+ {[%clk
0:00:04.8]} 35. Ke2 {[%clk 0:00:06.6]} 35... Rg1 {[%clk 0:00:05.3]} 36. Kf2
{[%clk 0:00:06.9]} 36... Rdd1 {[%clk 0:00:05.1]} 37. Rb6 {[%clk 0:00:05.7]}
37... h5 {[%clk 0:00:05.2]} 38. h4 {[%clk 0:00:05.1]} 38... g5 {[%clk
0:00:04.9]} 39. hxg5+ {[%clk 0:00:04.7]} 39... Kxg5 {[%clk 0:00:05.8]} 40. Rc5
{[%clk 0:00:02.5]} 40... h4 {[%clk 0:00:04.3]} 41. Rxe5+ {[%clk 0:00:01.7]}
41... Kf6 {[%clk 0:00:05.2]} 42. f4 {[%clk 0:00:02.1]} 42... Rgf1+ {[%clk
0:00:05]} 43. Ke2 {[%clk 0:00:02.2]} 43... Kg7 {[%clk 0:00:03.2]} 44. Rbxe6
{[%clk 0:00:01.6]} 44... fxe6 {[%clk 0:00:03.3]} 45. Rxe6 {[%clk 0:00:02.5]}
45... Kf7 {[%clk 0:00:03.9]} 46. Re5 {[%clk 0:00:02.3]} 46... Rde1+ {[%clk
0:00:04.4]} 47. Kd3 {[%clk 0:00:02.3]} 47... Rd1+ {[%clk 0:00:05.3]} 48. Ke4
{[%clk 0:00:02.6]} 48... Rg1 {[%clk 0:00:05.6]} 49. Rf5+ {[%clk 0:00:01.4]}
49... Kg6 {[%clk 0:00:05.6]} 50. Rg5+ {[%clk 0:00:01.8]} 50... Kh6 {[%clk
0:00:05.7]} 51. Be8 {[%clk 0:00:01.3]} 51... Rd2 {[%clk 0:00:05.6]} 0-1

[Event "Late-Titled-Tuesday-Blitz-March-12-2024"]
[Site "Chess.com"]
[Date "2024.03.12"]
[Round "6"]
[White "jk13"]
[Black "ketster"]
[Result "1-0"]
[WhiteElo "2702"]
[BlackElo "2563"]
[TimeControl "180+1"]
[EndTime "15:06:18 PDT"]
[Termination "jk13 won on time"]

1. e4 {[%clk 0:03:00]} 1... c5 {[%clk 0:02:55.8]} 2. c3 {[%clk 0:03:00.3]} 2...
d5 {[%clk 0:02:55.5]} 3. exd5 {[%clk 0:03:01.2]} 3... Nf6 {[%clk 0:02:55.5]} 4.
d4 {[%clk 0:03:00.6]} 4... Nxd5 {[%clk 0:02:55.6]} 5. Nf3 {[%clk 0:03:00.5]}
5... cxd4 {[%clk 0:02:55.9]} 6. Nxd4 {[%clk 0:03:00.9]} 6... e5 {[%clk 0:02:56]}
7. Nb5 {[%clk 0:03:00.4]} 7... Be6 {[%clk 0:02:52.2]} 8. Bc4 {[%clk 0:02:47.2]}
8... Nf4 {[%clk 0:02:38.9]} 9. Qxd8+ {[%clk 0:02:44.2]} 9... Kxd8 {[%clk
0:02:39.8]} 10. Bxe6 {[%clk 0:02:39.5]} 10... Nxe6 {[%clk 0:02:39.3]} 11. Be3
{[%clk 0:02:38]} 11... Bc5 {[%clk 0:02:30.3]} 12. Nd2 {[%clk 0:02:20.4]} 12...
Nd7 {[%clk 0:02:16.5]} 13. Ne4 {[%clk 0:02:15]} 13... Bxe3 {[%clk 0:02:11.7]}
14. fxe3 {[%clk 0:02:15.9]} 14... Ke7 {[%clk 0:02:11.9]} 15. O-O-O {[%clk
0:02:13]} 15... Rhd8 {[%clk 0:02:05.9]} 16. Nbd6 {[%clk 0:02:01.8]} 16... Ndc5
{[%clk 0:01:43.1]} 17. Nf5+ {[%clk 0:01:48.6]} 17... Kf8 {[%clk 0:01:40.6]} 18.
Nxc5 {[%clk 0:01:39.5]} 18... Nxc5 {[%clk 0:01:41.5]} 19. Kc2 {[%clk 0:01:38.3]}
19... g6 {[%clk 0:01:32.5]} 20. Nd6 {[%clk 0:01:31.6]} 20... Rd7 {[%clk
0:01:31.4]} 21. b4 {[%clk 0:01:25.8]} 21... Ne6 {[%clk 0:01:30.3]} 22. Nc4
{[%clk 0:01:18.4]} 22... Re7 {[%clk 0:01:00]} 23. Nxe5 {[%clk 0:01:12.4]} 23...
Ng5 {[%clk 0:00:53.9]} 24. Rd5 {[%clk 0:01:03.3]} 24... h6 {[%clk 0:00:39.7]}
25. Rf1 {[%clk 0:00:51.5]} 25... Kg7 {[%clk 0:00:39.2]} 26. Rf4 {[%clk
0:00:41.9]} 26... Rae8 {[%clk 0:00:37.4]} 27. Nc4 {[%clk 0:00:42]} 27... a6
{[%clk 0:00:28.1]} 28. a4 {[%clk 0:00:41.6]} 28... Ne4 {[%clk 0:00:24.2]} 29. h4
{[%clk 0:00:35.5]} 29... h5 {[%clk 0:00:21.9]} 30. Kb3 {[%clk 0:00:35.3]} 30...
Nf6 {[%clk 0:00:20.1]} 31. Rd6 {[%clk 0:00:30.6]} 31... Ne4 {[%clk 0:00:17.5]}
32. Rd4 {[%clk 0:00:26.7]} 32... Nf6 {[%clk 0:00:08.9]} 33. Nd6 {[%clk 0:00:26]}
33... Rb8 {[%clk 0:00:04.8]} 34. e4 {[%clk 0:00:25.5]} 34... Ng4 {[%clk
0:00:04.6]} 35. a5 {[%clk 0:00:23.1]} 35... Ne5 {[%clk 0:00:04.7]} 36. Nc4
{[%clk 0:00:22.3]} 36... Nc6 {[%clk 0:00:04]} 37. Rd5 {[%clk 0:00:21.4]} 37...
Rbe8 {[%clk 0:00:03.3]} 38. Nd6 {[%clk 0:00:21.3]} 38... Rb8 {[%clk 0:00:03.8]}
39. g4 {[%clk 0:00:18.8]} 39... hxg4 {[%clk 0:00:03.8]} 40. Rxg4 {[%clk
0:00:19.7]} 40... Kf8 {[%clk 0:00:04.5]} 41. Rf4 {[%clk 0:00:19.9]} 41... Rd8
{[%clk 0:00:04.3]} 42. Kc4 {[%clk 0:00:19.2]} 42... Red7 {[%clk 0:00:04.7]} 43.
Kc5 {[%clk 0:00:18.5]} 43... Ne7 {[%clk 0:00:03.5]} 44. Rxf7+ {[%clk 0:00:16.8]}
44... Kg8 {[%clk 0:00:04]} 45. Rf6 {[%clk 0:00:16.7]} 45... Nxd5 {[%clk
0:00:03.8]} 46. Kxd5 {[%clk 0:00:14.1]} 46... Rc7 {[%clk 0:00:03.7]} 47. c4
{[%clk 0:00:13.9]} 47... Kg7 {[%clk 0:00:04.1]} 48. e5 {[%clk 0:00:13.8]} 48...
Re7 {[%clk 0:00:03.1]} 49. Re6 {[%clk 0:00:13.4]} 49... Red7 {[%clk 0:00:03.2]}
50. c5 {[%clk 0:00:13.5]} 50... Rc7 {[%clk 0:00:03.4]} 51. Re8 {[%clk
0:00:12.7]} 51... Rxe8 {[%clk 0:00:02]} 52. Nxe8+ {[%clk 0:00:12.9]} 52... Kf7
{[%clk 0:00:02.6]} 53. Nxc7 {[%clk 0:00:13.8]} 53... Ke7 {[%clk 0:00:03.5]} 54.
e6 {[%clk 0:00:14]} 54... Kd8 {[%clk 0:00:02.3]} 55. Kd6 {[%clk 0:00:14.3]}
55... Kc8 {[%clk 0:00:01.8]} 56. e7 {[%clk 0:00:15.2]} 1-0

[Event "Late-Titled-Tuesday-Blitz-March-12-2024"]
[Site "Chess.com"]
[Date "2024.03.12"]
[Round "6"]
[White "BebeBonito2022"]
[Black "Thjop"]
[Result "0-1"]
[WhiteElo "2304"]
[BlackElo "2658"]
[TimeControl "180+1"]
[EndTime "15:06:24 PDT"]
[Termination "Thjop won on time"]

1. d4 {[%clk 0:03:00.9]} 1... Nf6 {[%clk 0:02:59.6]} 2. c4 {[%clk 0:03:01.1]}
2... g6 {[%clk 0:02:59.9]} 3. Nc3 {[%clk 0:03:01.3]} 3... Bg7 {[%clk 0:03:00.4]}
4. e4 {[%clk 0:03:01.6]} 4... O-O {[%clk 0:03:00.7]} 5. Nf3 {[%clk 0:03:01.9]}
5... d6 {[%clk 0:03:01.2]} 6. h3 {[%clk 0:03:02.5]} 6... e5 {[%clk 0:02:57.5]}
7. d5 {[%clk 0:03:03]} 7... a5 {[%clk 0:02:57.8]} 8. Bg5 {[%clk 0:03:03]} 8...
h6 {[%clk 0:02:57.2]} 9. Be3 {[%clk 0:03:02.8]} 9... Na6 {[%clk 0:02:57.7]} 10.
Be2 {[%clk 0:03:01.1]} 10... Nh5 {[%clk 0:02:52.4]} 11. g3 {[%clk 0:03:01.3]}
11... Bd7 {[%clk 0:02:46.8]} 12. Nd2 {[%clk 0:02:58.8]} 12... Nf6 {[%clk
0:02:46.6]} 13. g4 {[%clk 0:02:58.8]} 13... Nh7 {[%clk 0:02:43.7]} 14. h4 {[%clk
0:02:58.9]} 14... b6 {[%clk 0:02:36.4]} 15. h5 {[%clk 0:02:58.4]} 15... Ng5
{[%clk 0:02:34.1]} 16. Nf3 {[%clk 0:02:47.9]} 16... Bf6 {[%clk 0:02:20.5]} 17.
Nh4 {[%clk 0:02:23.4]} 17... Kg7 {[%clk 0:02:14.8]} 18. Ng2 {[%clk 0:02:11.2]}
18... Nc5 {[%clk 0:02:12.4]} 19. Qc2 {[%clk 0:02:01.6]} 19... Qc8 {[%clk
0:02:08.6]} 20. f3 {[%clk 0:02:01.6]} 20... a4 {[%clk 0:02:07]} 21. O-O-O {[%clk
0:01:58.1]} 21... Qa6 {[%clk 0:02:05.1]} 22. Rh2 {[%clk 0:01:32.3]} 22... Rh8
{[%clk 0:02:04.5]} 23. Rdh1 {[%clk 0:01:32.1]} 23... Qa5 {[%clk 0:02:02.4]} 24.
Nd1 {[%clk 0:01:16.1]} 24... Rae8 {[%clk 0:01:54.9]} 25. Nf2 {[%clk 0:01:16.2]}
25... Qa8 {[%clk 0:01:50.1]} 26. Nh3 {[%clk 0:01:16.3]} 26... Qd8 {[%clk
0:01:47.4]} 27. Qd2 {[%clk 0:01:12.5]} 27... Nxh3 {[%clk 0:01:38.3]} 28. Rxh3
{[%clk 0:01:11.5]} 28... Bg5 {[%clk 0:01:36.2]} 29. hxg6 {[%clk 0:01:06]} 29...
fxg6 {[%clk 0:01:34.2]} 30. Bxg5 {[%clk 0:00:54.7]} 30... hxg5 {[%clk
0:01:28.9]} 31. Qe1 {[%clk 0:00:41.2]} 31... Rxh3 {[%clk 0:01:28.2]} 32. Rxh3
{[%clk 0:00:41.5]} 32... Rh8 {[%clk 0:01:28.5]} 33. Qh1 {[%clk 0:00:41.7]} 33...
Rxh3 {[%clk 0:01:27.2]} 34. Qxh3 {[%clk 0:00:42.4]} 34... Qa8 {[%clk 0:01:15.2]}
35. Ne3 {[%clk 0:00:30.8]} 35... Qa5 {[%clk 0:01:01]} 36. Qf1 {[%clk 0:00:30.4]}
36... a3 {[%clk 0:01:00.5]} 37. Qd1 {[%clk 0:00:15.6]} 37... axb2+ {[%clk
0:00:59.3]} 38. Kxb2 {[%clk 0:00:15.9]} 38... Na4+ {[%clk 0:00:49.3]} 39. Kc1
{[%clk 0:00:09]} 39... Nc3 {[%clk 0:00:38.2]} 40. Qc2 {[%clk 0:00:06.8]} 40...
Nxa2+ {[%clk 0:00:32]} 41. Kb2 {[%clk 0:00:06.7]} 41... Nb4 {[%clk 0:00:30]} 42.
Qb3 {[%clk 0:00:07.1]} 42... Na6 {[%clk 0:00:29.1]} 43. Nc2 {[%clk 0:00:06.6]}
43... Qd2 {[%clk 0:00:26]} 44. Qd3 {[%clk 0:00:06.7]} 44... Qa5 {[%clk
0:00:23.7]} 45. Qa3 {[%clk 0:00:06.6]} 45... Qd2 {[%clk 0:00:18.7]} 46. Qd3
{[%clk 0:00:06.4]} 46... Qf4 {[%clk 0:00:18.8]} 47. Qa3 {[%clk 0:00:04.2]} 47...
Nc5 {[%clk 0:00:15.8]} 48. Qa7 {[%clk 0:00:04.5]} 48... Qd2 {[%clk 0:00:16.1]}
49. Qxc7 {[%clk 0:00:04.7]} 49... Qxe2 {[%clk 0:00:16.1]} 50. Qxb6 {[%clk
0:00:04.3]} 50... Qxc4 {[%clk 0:00:13.7]} 51. Qxd6 {[%clk 0:00:04.3]} 51... Kf7
{[%clk 0:00:06.8]} 52. Qb6 {[%clk 0:00:01.3]} 52... Na4+ {[%clk 0:00:06.4]} 0-1

[Event "Late-Titled-Tuesday-Blitz-March-12-2024"]
[Site "Chess.com"]
[Date "2024.03.12"]
[Round "6"]
[White "Sina_Movahed"]
[Black "MikaelyanArman"]
[Result "0-1"]
[WhiteElo "3029"]
[BlackElo "2845"]
[TimeControl "180+1"]
[EndTime "15:06:26 PDT"]
[Termination "MikaelyanArman won by checkmate"]

1. Nf3 {[%clk 0:03:00.9]} 1... Nf6 {[%clk 0:02:59.8]} 2. c4 {[%clk 0:03:00.9]}
2... c6 {[%clk 0:02:59.8]} 3. g3 {[%clk 0:03:00.9]} 3... d5 {[%clk 0:03:00.2]}
4. Bg2 {[%clk 0:03:01.8]} 4... g6 {[%clk 0:03:00.4]} 5. b3 {[%clk 0:03:01.2]}
5... Bg7 {[%clk 0:03:00.5]} 6. Bb2 {[%clk 0:03:01.9]} 6... O-O {[%clk
0:03:00.5]} 7. O-O {[%clk 0:03:02.5]} 7... a5 {[%clk 0:03:01]} 8. a3 {[%clk
0:02:55.9]} 8... Nbd7 {[%clk 0:02:44.4]} 9. d4 {[%clk 0:02:32.1]} 9... Ne4
{[%clk 0:02:35.2]} 10. Nbd2 {[%clk 0:02:30.9]} 10... Nxd2 {[%clk 0:02:18.1]} 11.
Nxd2 {[%clk 0:02:28.5]} 11... Nf6 {[%clk 0:02:07.9]} 12. Rc1 {[%clk 0:02:26.7]}
12... Bf5 {[%clk 0:02:04.9]} 13. Re1 {[%clk 0:02:22.7]} 13... Qb6 {[%clk
0:01:59]} 14. e3 {[%clk 0:02:14.9]} 14... h5 {[%clk 0:01:50.9]} 15. h4 {[%clk
0:02:14.3]} 15... Rfd8 {[%clk 0:01:41.9]} 16. Bc3 {[%clk 0:02:07.8]} 16... Qa6
{[%clk 0:01:24]} 17. Bf1 {[%clk 0:02:03.5]} 17... Qb6 {[%clk 0:01:20.9]} 18. b4
{[%clk 0:01:57]} 18... axb4 {[%clk 0:01:21.5]} 19. axb4 {[%clk 0:01:56.7]} 19...
Ra3 {[%clk 0:01:10.1]} 20. b5 {[%clk 0:01:52.4]} 20... Qc7 {[%clk 0:00:55.1]}
21. bxc6 {[%clk 0:01:45.5]} 21... bxc6 {[%clk 0:00:56]} 22. cxd5 {[%clk
0:01:42.2]} 22... Nxd5 {[%clk 0:00:46.6]} 23. Bb2 {[%clk 0:01:41.9]} 23... Ra2
{[%clk 0:00:47]} 24. Qb3 {[%clk 0:01:39.9]} 24... Qa7 {[%clk 0:00:40.6]} 25. Ra1
{[%clk 0:01:33.9]} 25... Rxa1 {[%clk 0:00:33.7]} 26. Rxa1 {[%clk 0:01:34.8]}
26... Qb8 {[%clk 0:00:32.3]} 27. Qa3 {[%clk 0:01:14.8]} 27... Nxe3 {[%clk
0:00:30.3]} 28. fxe3 {[%clk 0:00:40.9]} 28... Qxg3+ {[%clk 0:00:30.2]} 29. Kh1
{[%clk 0:00:41.4]} 29... Qxh4+ {[%clk 0:00:27.8]} 30. Kg1 {[%clk 0:00:40.4]}
30... Qg3+ {[%clk 0:00:24.7]} 31. Kh1 {[%clk 0:00:40.8]} 31... Bh6 {[%clk
0:00:20.6]} 32. e4 {[%clk 0:00:32.5]} 32... Be3 {[%clk 0:00:18.5]} 33. Nf3
{[%clk 0:00:16.1]} 33... Qxf3+ {[%clk 0:00:18.7]} 34. Bg2 {[%clk 0:00:16.4]}
34... Qg3 {[%clk 0:00:19]} 35. Qxe7 {[%clk 0:00:16.1]} 35... Rd7 {[%clk
0:00:16.3]} 36. Qf6 {[%clk 0:00:07.4]} 36... Ra7 {[%clk 0:00:09.5]} 37. Rf1
{[%clk 0:00:03.6]} 37... Bf4 {[%clk 0:00:05.3]} 38. Rxf4 {[%clk 0:00:02.6]}
38... Qxf4 {[%clk 0:00:06.2]} 39. d5 {[%clk 0:00:02.8]} 39... Ra1+ {[%clk
0:00:02.7]} 40. Bxa1 {[%clk 0:00:03.5]} 40... Qc1+ {[%clk 0:00:03.3]} 41. Kh2
{[%clk 0:00:04.2]} 41... Qf4+ {[%clk 0:00:04]} 42. Kg1 {[%clk 0:00:04.9]} 42...
Qe3+ {[%clk 0:00:03.5]} 43. Kf1 {[%clk 0:00:05.5]} 43... Qc1+ {[%clk 0:00:02.7]}
44. Kf2 {[%clk 0:00:05.5]} 44... Qf4+ {[%clk 0:00:02.5]} 45. Bf3 {[%clk
0:00:05.3]} 45... Qd2+ {[%clk 0:00:02.6]} 46. Kg3 {[%clk 0:00:05.4]} 46... Qe1+
{[%clk 0:00:02.4]} 47. Kg2 {[%clk 0:00:06]} 47... Qd2+ {[%clk 0:00:02.8]} 48.
Kg3 {[%clk 0:00:06.5]} 48... Qe1+ {[%clk 0:00:03.1]} 49. Kf4 {[%clk 0:00:07.2]}
49... Qd2+ {[%clk 0:00:03.1]} 50. Ke5 {[%clk 0:00:07.7]} 50... Qc1 {[%clk
0:00:02.8]} 51. Kd6 {[%clk 0:00:07.9]} 51... Qa3+ {[%clk 0:00:02.8]} 52. Kxc6
{[%clk 0:00:08.3]} 52... Qa6+ {[%clk 0:00:02.9]} 53. Kc7 {[%clk 0:00:08.8]}
53... Qa7+ {[%clk 0:00:03.3]} 54. Kd8 {[%clk 0:00:09.3]} 54... Qb8+ {[%clk
0:00:02.8]} 55. Ke7 {[%clk 0:00:08.3]} 55... Qc7+ {[%clk 0:00:02.7]} 56. Ke8
{[%clk 0:00:09]} 56... Qd7# {[%clk 0:00:03]} 0-1

[Event "Late-Titled-Tuesday-Blitz-March-12-2024"]
[Site "Chess.com"]
[Date "2024.03.12"]
[Round "6"]
[White "Chempiblinka"]
[Black "CarlosjPineror"]
[Result "0-1"]
[WhiteElo "2333"]
[BlackElo "2571"]
[TimeControl "180+1"]
[EndTime "15:06:27 PDT"]
[Termination "CarlosjPineror won on time"]

1. Nf3 {[%clk 0:03:00.9]} 1... Nf6 {[%clk 0:02:56.7]} 2. g3 {[%clk 0:02:56.3]}
2... e6 {[%clk 0:02:56.5]} 3. Bg2 {[%clk 0:02:54.3]} 3... Be7 {[%clk 0:02:55.8]}
4. O-O {[%clk 0:02:53.7]} 4... c5 {[%clk 0:02:56.5]} 5. c4 {[%clk 0:02:54]} 5...
O-O {[%clk 0:02:51.8]} 6. Nc3 {[%clk 0:02:44.7]} 6... a6 {[%clk 0:02:51.8]} 7.
a3 {[%clk 0:02:40.7]} 7... Qc7 {[%clk 0:02:47.8]} 8. d3 {[%clk 0:02:34.9]} 8...
Nc6 {[%clk 0:02:43.3]} 9. Rb1 {[%clk 0:02:32.4]} 9... d6 {[%clk 0:02:41.1]} 10.
b4 {[%clk 0:02:30.6]} 10... b6 {[%clk 0:02:40.5]} 11. b5 {[%clk 0:01:37.1]}
11... axb5 {[%clk 0:02:28.4]} 12. Nxb5 {[%clk 0:01:38]} 12... Qb8 {[%clk
0:02:27.5]} 13. Bf4 {[%clk 0:01:38.2]} 13... Bd7 {[%clk 0:02:18.9]} 14. Rb2
{[%clk 0:01:26.1]} 14... h6 {[%clk 0:02:14]} 15. Qb1 {[%clk 0:01:26.4]} 15... e5
{[%clk 0:02:14.7]} 16. Bd2 {[%clk 0:01:21.4]} 16... Ra6 {[%clk 0:02:07.1]} 17.
Ne1 {[%clk 0:01:19.7]} 17... Nd4 {[%clk 0:01:56]} 18. Nxd4 {[%clk 0:01:08.6]}
18... exd4 {[%clk 0:01:54.9]} 19. Nc2 {[%clk 0:01:06.7]} 19... Bd8 {[%clk
0:01:47.5]} 20. e3 {[%clk 0:01:06.7]} 20... dxe3 {[%clk 0:01:47.3]} 21. Bxe3
{[%clk 0:01:07.6]} 21... Qc7 {[%clk 0:01:37.4]} 22. Re1 {[%clk 0:01:02.8]} 22...
Bc6 {[%clk 0:01:37.3]} 23. Bf4 {[%clk 0:00:58.9]} 23... Bxg2 {[%clk 0:01:33]}
24. Kxg2 {[%clk 0:00:59.8]} 24... Qc6+ {[%clk 0:01:33.7]} 25. Kg1 {[%clk
0:00:58]} 25... d5 {[%clk 0:01:34.6]} 26. Qd1 {[%clk 0:00:56.5]} 26... d4 {[%clk
0:01:32.6]} 27. Qd2 {[%clk 0:00:37.3]} 27... Kh7 {[%clk 0:01:20.5]} 28. Re2
{[%clk 0:00:34.5]} 28... Re8 {[%clk 0:01:19.4]} 29. Qe1 {[%clk 0:00:34.5]} 29...
Rxe2 {[%clk 0:01:18.8]} 30. Qxe2 {[%clk 0:00:35.4]} 30... Ra7 {[%clk 0:01:16.2]}
31. Rb1 {[%clk 0:00:31.5]} 31... Re7 {[%clk 0:01:15.8]} 32. Qd2 {[%clk
0:00:31.9]} 32... Re6 {[%clk 0:01:12.5]} 33. Qd1 {[%clk 0:00:20.4]} 33... g5
{[%clk 0:01:11.4]} 34. Bd2 {[%clk 0:00:20]} 34... Kg6 {[%clk 0:01:03.6]} 35. Ne1
{[%clk 0:00:20.5]} 35... Bc7 {[%clk 0:01:01.7]} 36. Ng2 {[%clk 0:00:20.7]} 36...
Nd7 {[%clk 0:01:00.4]} 37. h4 {[%clk 0:00:21.2]} 37... f5 {[%clk 0:01:00.5]} 38.
hxg5 {[%clk 0:00:21]} 38... hxg5 {[%clk 0:01:01.4]} 39. Qc1 {[%clk 0:00:21.4]}
39... Bd8 {[%clk 0:01:00.8]} 40. Qc2 {[%clk 0:00:19.9]} 40... Qf3 {[%clk
0:01:00.6]} 41. Re1 {[%clk 0:00:19.7]} 41... Rxe1+ {[%clk 0:00:57.6]} 42. Nxe1
{[%clk 0:00:20.6]} 42... Qe2 {[%clk 0:00:57.2]} 43. Qc1 {[%clk 0:00:20.1]} 43...
Ne5 {[%clk 0:00:55.5]} 44. a4 {[%clk 0:00:19.2]} 44... Nxd3 {[%clk 0:00:54.5]}
45. Nxd3 {[%clk 0:00:20.1]} 45... Qxd3 {[%clk 0:00:55.3]} 46. Be1 {[%clk
0:00:17.3]} 46... Qe2 {[%clk 0:00:52.3]} 47. Qb1 {[%clk 0:00:16.4]} 47... Qe4
{[%clk 0:00:49.4]} 48. Qd1 {[%clk 0:00:11.6]} 48... d3 {[%clk 0:00:47]} 49. Bc3
{[%clk 0:00:11.9]} 49... Bf6 {[%clk 0:00:46.4]} 50. Qd2 {[%clk 0:00:10.9]} 50...
Qe2 {[%clk 0:00:42.7]} 51. a5 {[%clk 0:00:07.9]} 51... bxa5 {[%clk 0:00:42.3]}
52. Bxa5 {[%clk 0:00:07.6]} 52... Bd4 {[%clk 0:00:30.7]} 53. Qe1 {[%clk
0:00:04.1]} 53... f4 {[%clk 0:00:24.5]} 54. Kg2 {[%clk 0:00:03.7]} 54... f3+
{[%clk 0:00:23.3]} 55. Kg1 {[%clk 0:00:03.7]} 55... Kf5 {[%clk 0:00:23.3]} 56.
Qxe2 {[%clk 0:00:02.9]} 56... dxe2 {[%clk 0:00:23.5]} 57. Bd2 {[%clk 0:00:02]}
57... g4 {[%clk 0:00:23.9]} 58. Kh2 {[%clk 0:00:01.7]} 58... Ke4 {[%clk
0:00:24.6]} 59. Kg1 {[%clk 0:00:01.7]} 59... Kd3 {[%clk 0:00:25.5]} 60. Ba5
{[%clk 0:00:01.9]} 60... Bc3 {[%clk 0:00:24.6]} 61. Bxc3 {[%clk 0:00:01.1]}
61... Kxc3 {[%clk 0:00:25.2]} 62. Kh2 {[%clk 0:00:01.7]} 62... Kxc4 {[%clk
0:00:25.2]} 0-1